bitfinex-derivatives/quotes_BTCF0:USTF0_20250930
["timestamp","ask_amount","ask_price","bid_price","bid_amount"]
[1759254047638,0.86525034,113480.0,113470.0,0.1008285]
[1759254047840,0.86525034,113480.0,113470.0,0.53923294]
[1759254047841,1.68805034,113480.0,113470.0,0.53923294]
[1759254048143,1.68845034,113480.0,113470.0,0.60190347]
[1759254048446,0.86565034,113480.0,113470.0,0.60190347]
[1759254048743,1.68845034,113480.0,113470.0,0.60190347]
[1759254048935,0.86565034,113480.0,113470.0,0.60190347]
[1759254049244,1.68845034,113480.0,113470.0,0.60190347]
[1759254049540,0.86525034,113480.0,113470.0,0.60190347]
[1759254049746,1.68845034,113480.0,113470.0,0.60190347]
[1759254052452,2.50479478,113480.0,113470.0,0.14644337]
[1759254053148,2.50479478,113480.0,113470.0,0.23455077]
[1759254056145,2.50479478,113480.0,113470.0,0.14644337]
[1759254056351,2.00034444,113480.0,113470.0,0.60190307]
[1759254056542,1.59994444,113480.0,113470.0,0.60190307]
[1759254056844,1.68844474,113480.0,113470.0,0.6709969]
[1759254057246,0.86564474,113480.0,113470.0,0.6709969]
[1759254057450,1.68840474,113480.0,113470.0,0.6709969]
[1759254057750,1.2720603,113480.0,113470.0,0.6709969]
[1759254057946,1.68840474,113480.0,113470.0,0.6709969]
[1759254058448,1.23950444,113480.0,113470.0,0.6709969]
[1759254058952,1.32760464,113480.0,113470.0,0.6709969]
[1759254059243,0.50484464,113480.0,113470.0,0.6709969]
[1759254059448,1.32760464,113480.0,113470.0,0.6709969]
[1759254059645,0.9112602,113480.0,113470.0,0.6709969]
[1759254059850,0.50484464,113480.0,113470.0,0.60832637]
[1759254060050,0.86524244,113490.0,113480.0,0.1228801]
[1759254060346,1.68880244,113490.0,113480.0,0.53922454]
[1759254060540,1.68880244,113490.0,113480.0,0.1228801]
[1759254060742,1.68880244,113490.0,113480.0,0.03478]
[1759254062052,1.68880244,113490.0,113480.0,0.04509748]
[1759254062257,1.272458,113490.0,113480.0,0.04509748]
[1759254062452,1.68880244,113490.0,113480.0,0.04509748]
[1759254063253,1.68880244,113490.0,113480.0,0.13319688]
[1759254063645,1.68880244,113490.0,113480.0,0.04509748]
[1759254064154,1.272458,113490.0,113480.0,0.04509748]
[1759254064347,1.68880244,113490.0,113480.0,0.04509748]
[1759254064551,0.86604244,113490.0,113480.0,0.13319768]
[1759254064850,1.68872244,113490.0,113480.0,0.13319768]
[1759254065055,1.68872244,113490.0,113480.0,0.54954212]
[1759254065256,1.68872244,113490.0,113480.0,0.46144192]
[1759254065554,1.68872244,113490.0,113480.0,0.02303748]
[1759254067058,1.95432244,113490.0,113480.0,0.04509748]
[1759254067458,1.95432244,113490.0,113480.0,0.10776801]
[1759254068147,1.95428244,113490.0,113480.0,0.04509748]
[1759254068752,1.95428244,113490.0,113480.0,0.54954152]
[1759254069056,1.95428244,113490.0,113480.0,0.04509748]
[1759254069258,1.95428244,113490.0,113480.0,0.13319708]
[1759254069453,0.715298,113490.0,113480.0,0.13319708]
[1759254069657,1.13164244,113490.0,113480.0,0.61221205]
[1759254069852,1.95428244,113490.0,113480.0,0.61221205]
[1759254070256,1.13164244,113490.0,113480.0,0.61221205]
[1759254070559,1.95424244,113490.0,113480.0,0.61221205]
[1759254070958,1.13164244,113490.0,113480.0,0.61221205]
[1759254071149,1.95424244,113490.0,113480.0,0.61221205]
[1759254072755,1.95424244,113490.0,113480.0,0.54954152]
[1759254074250,1.95424244,113490.0,113480.0,0.13319708]
[1759254074454,1.537858,113490.0,113480.0,0.61221205]
[1759254074657,1.95420244,113490.0,113480.0,0.61221205]
[1759254075453,0.2664,113490.0,113480.0,1.02855649]
[1759254075655,1.1762119,113490.0,113480.0,0.96588596]
[1759254075862,0.9110119,113490.0,113480.0,1.32668596]
[1759254076659,1.32735634,113490.0,113480.0,0.91034152]
[1759254076860,1.68815634,113490.0,113480.0,0.46144192]
[1759254077066,1.68815634,113490.0,113480.0,0.61219845]
[1759254077468,1.32735634,113490.0,113480.0,0.54954152]
[1759254077868,1.32735634,113490.0,113480.0,0.61220024]
[1759254078062,0.9110118,113490.0,113480.0,0.61220024]
[1759254078256,0.82292,113490.0,113480.0,1.02854468]
[1759254078458,0.82292,113490.0,113480.0,1.32668596]
[1759254078459,0.82288,113490.0,113480.0,1.32668596]
[1759254078655,0.82248,113490.0,113480.0,2.20568453]
[1759254078869,0.82288,113490.0,113480.0,2.1430304]
[1759254079169,0.001,113500.0,113490.0,0.1225418]
[1759254079367,0.82424,113500.0,113490.0,1.01783248]
[1759254079663,0.82424,113500.0,113490.0,0.60148804]
[1759254079664,0.82344,113500.0,113490.0,0.60148804]
[1759254079868,0.82384,113500.0,113490.0,0.96228804]
[1759254081456,0.82384,113500.0,113490.0,0.89968624]
[1759254082060,0.8238,113500.0,113490.0,0.89968624]
[1759254082568,0.0014,113500.0,113490.0,0.89968624]
[1759254082769,0.9118441,113500.0,113490.0,0.89968624]
[1759254083072,0.82376,113500.0,113490.0,0.89968624]
[1759254083566,0.9118441,113500.0,113490.0,0.89968624]
[1759254084273,0.82376,113500.0,113490.0,0.89968624]
[1759254085476,0.82376,113500.0,113490.0,0.96223577]
[1759254087774,1.24010444,113500.0,113490.0,0.96223577]
[1759254089265,0.82376,113500.0,113490.0,0.96223577]
[1759254089473,1.24010444,113500.0,113490.0,0.96223577]
[1759254090980,0.82376,113500.0,113490.0,0.96223577]
[1759254092482,0.82376,113500.0,113490.0,0.54589133]
[1759254092877,0.82376,113500.0,113490.0,0.96223577]
[1759254095181,0.0014,113500.0,113490.0,0.96223577]
[1759254095374,0.82348,113500.0,113490.0,0.96223577]
[1759254095574,0.0014,113500.0,113490.0,1.77858021]
[1759254095776,0.48156,113500.0,113490.0,1.77858021]
[1759254095984,0.0014,113500.0,113490.0,1.71603068]
[1759254096177,0.001,113500.0,113490.0,1.79466706]
[1759254096684,0.33356,113500.0,113490.0,1.79466706]
[1759254096984,0.6502,113500.0,113490.0,1.79466706]
[1759254097183,0.6506,113500.0,113490.0,1.79466706]
[1759254097785,0.0014,113500.0,113490.0,1.79466706]
[1759254097983,0.3733,113530.0,113490.0,2.1229197]
[1759254098186,0.3733,113530.0,113520.0,0.95520538]
[1759254098387,1.1507,113530.0,113520.0,0.95520538]
[1759254098586,1.1503,113530.0,113520.0,0.95520538]
[1759254098784,1.1507,113530.0,113520.0,0.95520538]
[1759254099082,1.1507,113530.0,113520.0,0.53886094]
[1759254099285,1.1507,113530.0,113520.0,0.95520538]
[1759254099483,1.19566,113530.0,113520.0,0.95520538]
[1759254099785,1.19566,113530.0,113520.0,1.0176726]
[1759254100177,1.19526,113530.0,113520.0,1.0176726]
[1759254100378,1.19566,113530.0,113520.0,1.0176726]
[1759254100577,0.3733,113530.0,113520.0,1.0176726]
[1759254100780,1.19558,113530.0,113520.0,0.95520538]
[1759254101289,0.0129,113530.0,113520.0,1.7784726]
[1759254101589,0.83438,113530.0,113520.0,1.7784726]
[1759254101888,0.83478,113530.0,113520.0,1.71600538]
[1759254102089,0.83438,113530.0,113520.0,1.79464176]
[1759254102285,0.83478,113530.0,113520.0,1.39464176]
[1759254102989,0.83478,113530.0,113520.0,1.46620578]
[1759254103576,0.83438,113530.0,113520.0,1.46620578]
[1759254103780,0.83478,113530.0,113520.0,1.46620578]
[1759254104078,0.83478,113530.0,113520.0,1.3875694]
[1759254104386,0.83478,113530.0,113520.0,0.97084608]
[1759254105681,0.0129,113530.0,113520.0,1.04948246]
[1759254105889,0.0129,113530.0,113520.0,1.86544802]
[1759254105890,0.83462,113530.0,113520.0,1.86544802]
[1759254106078,0.83422,113530.0,113520.0,1.86544802]
[1759254106280,0.83462,113530.0,113520.0,1.86544802]
[1759254106988,0.83462,113530.0,113520.0,1.78681164]
[1759254107291,0.83458,113530.0,113520.0,1.78681164]
[1759254108086,0.0129,113530.0,113520.0,1.78681164]
[1759254108293,0.83454,113530.0,113520.0,1.78681164]
[1759254109192,0.8345,113530.0,113520.0,1.84916161]
[1759254109392,0.0129,113530.0,113520.0,1.84916161]
[1759254109788,0.0018,113550.0,113540.0,0.1240114]
[1759254109984,0.82336,113550.0,113540.0,0.50239783]
[1759254110189,0.82256,113550.0,113540.0,0.50239783]
[1759254110388,0.82296,113550.0,113540.0,0.91836339]
[1759254110789,0.82296,113550.0,113540.0,0.92831425]
[1759254112000,0.82296,113550.0,113540.0,0.51234869]
[1759254112486,0.82296,113550.0,113540.0,0.92831425]
[1759254114297,0.82296,113550.0,113540.0,0.51234869]
[1759254114298,0.9110041,113550.0,113540.0,0.51234869]
[1759254114593,2.08776966,113550.0,113540.0,0.12860869]
[1759254114995,2.08776966,113550.0,113540.0,0.11102226]
[1759254115203,2.08776966,113550.0,113540.0,0.13396226]
[1759254116199,1.6718041,113550.0,113540.0,0.13396226]
[1759254116797,2.08776966,113550.0,113540.0,0.13396226]
[1759254116996,2.08776966,113550.0,113540.0,0.11102226]
[1759254117195,2.08776966,113550.0,113540.0,0.02297086]
[1759254117398,2.50373522,113550.0,113540.0,0.02297086]
[1759254117598,2.50373522,113550.0,113540.0,0.01302]
[1759254118200,0.0880535,113540.0,113530.0,0.01302]
[1759254118503,0.86481906,113540.0,113530.0,0.01302]
[1759254118804,1.26481906,113540.0,113530.0,0.1010812]
[1759254119201,1.26481906,113540.0,113530.0,0.1240212]
[1759254120004,0.4502505,113550.0,113540.0,0.0880536]
[1759254120198,1.2711705,113550.0,113540.0,0.1240136]
[1759254120398,1.2719705,113550.0,113540.0,0.1240136]
[1759254120599,1.68713606,113550.0,113540.0,0.1240136]
[1759254120801,1.68713606,113550.0,113540.0,0.1010736]
[1759254121203,1.68713606,113550.0,113540.0,0.01302]
[1759254121410,2.08753606,113550.0,113540.0,0.01302]
[1759254121608,2.08753606,113550.0,113530.0,0.01302]
[1759254121609,0.0880535,113540.0,113530.0,0.01302]
[1759254121810,1.26481906,113540.0,113530.0,0.01302]
[1759254122003,0.8488535,113540.0,113530.0,0.01302]
[1759254122210,1.26481906,113540.0,113530.0,0.01302]
[1759254122405,1.26481906,113540.0,113530.0,0.1010812]
[1759254122811,1.2701735,113540.0,113530.0,0.53998676]
[1759254123409,1.2705735,113540.0,113530.0,0.1240212]
[1759254124203,1.18252,113540.0,113530.0,0.1240212]
[1759254124609,0.82172,113540.0,113530.0,0.1240212]
[1759254125112,0.82172,113540.0,113530.0,0.53998676]
[1759254126614,0.9097735,113540.0,113530.0,0.53998676]
[1759254127013,0.9097735,113540.0,113530.0,0.1240212]
[1759254127316,1.23768556,113540.0,113530.0,0.1240213]
[1759254127509,0.9097735,113540.0,113530.0,0.1240213]
[1759254127714,1.32573906,113540.0,113530.0,0.18637127]
[1759254128219,0.9097735,113540.0,113530.0,0.18637127]
[1759254128712,0.9097735,113540.0,113530.0,0.1240213]
[1759254129105,0.9097735,113540.0,113530.0,0.60233683]
[1759254129611,0.0004,113540.0,113530.0,0.53998686]
[1759254129914,0.0004,113540.0,113530.0,0.60233683]
[1759254130108,0.82168,113540.0,113530.0,0.60233683]
[1759254130509,0.9097337,113540.0,113530.0,0.60233683]
[1759254130713,0.0884537,113540.0,113530.0,0.60233683]
[1759254130913,0.9097337,113540.0,113530.0,0.60233683]
[1759254131106,0.82168,113540.0,113530.0,0.60233683]
[1759254132717,0.9097335,113540.0,113530.0,0.60233683]
[1759254132910,0.82168,113540.0,113530.0,0.60233683]
[1759254133212,0.9097335,113540.0,113530.0,0.60233683]
[1759254133614,0.9097335,113540.0,113530.0,0.62016659]
[1759254134017,0.82128,113540.0,113530.0,0.62016659]
[1759254134214,0.82168,113540.0,113530.0,0.62016659]
[1759254135308,0.82168,113540.0,113530.0,0.60233683]
[1759254136010,0.4498508,113550.0,113540.0,0.0880536]
[1759254136316,0.0018,113550.0,113540.0,0.60232913]
[1759254136508,0.82304,113550.0,113540.0,0.53997916]
[1759254136709,0.82224,113550.0,113540.0,1.00250642]
[1759254137008,0.82224,113550.0,113540.0,1.30077916]
[1759254137204,0.82264,113550.0,113540.0,1.30077916]
[1759254140618,0.82264,113550.0,113540.0,0.8848136]
[1759254140817,0.9106849,113550.0,113540.0,1.00248066]
[1759254141519,0.82264,113550.0,113540.0,0.60248066]
[1759254142509,0.82264,113550.0,113540.0,0.96328066]
[1759254142713,0.82264,113550.0,113540.0,0.1240126]
[1759254143018,0.82264,113550.0,113540.0,0.90077816]
[1759254143220,0.9106849,113550.0,113540.0,0.90077816]
[1759254143420,0.9106849,113550.0,113540.0,0.4848126]
[1759254143615,0.82264,113550.0,113540.0,0.4848126]
[1759254143921,0.9106849,113550.0,113540.0,0.90077816]
[1759254144320,0.82264,113550.0,113540.0,0.90077816]
[1759254144717,0.80832589,113550.0,113540.0,0.90077816]
[1759254144917,0.80832589,113550.0,113540.0,0.97941454]
[1759254145622,0.89637089,113550.0,113540.0,0.97941454]
[1759254146321,0.89637089,113550.0,113540.0,0.90077816]
[1759254146621,0.909485,113550.0,113540.0,0.90077816]
[1759254146819,0.82144,113550.0,113540.0,0.90077816]
[1759254147020,0.82144,113550.0,113540.0,0.4848126]
[1759254147615,0.0004,113550.0,113540.0,0.4848126]
[1759254147816,0.82144,113550.0,113540.0,0.4848126]
[1759254149123,0.82144,113550.0,113540.0,0.56344898]
[1759254149623,0.82144,113550.0,113540.0,0.97941454]
[1759254149824,0.82144,113550.0,113540.0,0.90077816]
[1759254150125,0.9094849,113550.0,113540.0,0.97941454]
[1759254151222,0.9094849,113550.0,113540.0,0.90077816]
[1759254152519,1.2702849,113550.0,113540.0,0.45192556]
[1759254152720,1.2702849,113550.0,113540.0,0.1240127]
[1759254153121,1.5358849,113550.0,113540.0,0.1240127]
[1759254153825,0.7148449,113550.0,113540.0,0.1240127]
[1759254154031,0.3540449,113550.0,113540.0,0.1240127]
[1759254154325,1.1749249,113550.0,113540.0,0.1240127]
[1759254155026,0.3540438,113550.0,113540.0,0.1240127]
[1759254155231,1.08688,113550.0,113540.0,0.1240127]
[1759254155418,1.174923,113550.0,113540.0,0.61861464]
[1759254157326,0.909323,113550.0,113540.0,0.61861464]
[1759254157828,0.909323,113550.0,113540.0,0.53056194]
[1759254158030,0.909323,113550.0,113540.0,0.20264728]
[1759254158728,0.0004,113550.0,113540.0,0.20264728]
[1759254158930,0.8212,113550.0,113540.0,0.20264728]
[1759254159317,0.8212,113550.0,113540.0,0.61861284]
[1759254159726,0.9092452,113550.0,113540.0,0.61861284]
[1759254160728,0.894931,113550.0,113540.0,0.61861284]
[1759254161926,0.77756556,113560.0,113540.0,0.61861284]
[1759254161927,0.86560856,113560.0,113550.0,0.0880452]
[1759254162131,1.68552856,113560.0,113550.0,0.18631742]
[1759254162320,1.269963,113560.0,113550.0,0.18631742]
[1759254162521,1.68592856,113560.0,113550.0,0.18631742]
[1759254164225,1.68592856,113560.0,113550.0,0.1237852]
[1759254165031,1.95152856,113560.0,113550.0,0.1237852]
[1759254165231,1.049843,113560.0,113550.0,0.1237852]
[1759254165435,1.870523,113560.0,113550.0,0.1237852]
[1759254165627,1.049443,113560.0,113550.0,0.1237852]
[1759254165827,1.870523,113560.0,113550.0,0.1237852]
[1759254166130,0.754043,113560.0,113550.0,0.1237852]
[1759254166330,1.99050554,113560.0,113550.0,0.53960774]
[1759254167231,1.99050554,113560.0,113550.0,0.61824412]
[1759254169234,1.99050554,113560.0,113550.0,0.20242158]
[1759254169926,2.40632808,113560.0,113550.0,0.20242158]
[1759254170132,2.40632808,113560.0,113550.0,0.03574]
[1759254170133,2.76712808,113560.0,113550.0,0.03574]
[1759254170334,2.76712808,113560.0,113550.0,0.18642113]
[1759254171234,2.76712808,113560.0,113550.0,0.16447113]
[1759254172323,2.76712808,113560.0,113550.0,0.18687113]
[1759254172523,2.76712808,113560.0,113550.0,0.1242352]
[1759254173435,1.935483,113560.0,113550.0,0.1242352]
[1759254173633,2.40632808,113560.0,113550.0,0.1242352]
[1759254174032,1.99050554,113560.0,113550.0,0.1242352]
[1759254175927,1.99050554,113560.0,113550.0,0.54005774]
[1759254177435,1.99050554,113560.0,113550.0,0.1242352]
[1759254178933,1.16986554,113560.0,113550.0,0.1242352]
[1759254179239,1.99022554,113560.0,113550.0,0.1242352]
[1759254181241,1.16986554,113560.0,113550.0,0.54005774]
[1759254181431,1.99014554,113560.0,113550.0,0.1242352]
[1759254181938,2.40596808,113560.0,113550.0,0.1242352]
[1759254182137,1.935123,113560.0,113550.0,0.01379]
[1759254182339,2.75245404,113560.0,113550.0,0.09242638]
[1759254182637,2.75245404,113560.0,113550.0,0.1242348]
[1759254184035,1.93217404,113560.0,113550.0,0.1242348]
[1759254184231,2.39157404,113560.0,113550.0,0.1242348]
[1759254184434,2.39157404,113560.0,113550.0,0.20287118]
[1759254184939,1.57137404,113560.0,113550.0,0.20287118]
[1759254185242,2.39157404,113560.0,113550.0,0.20287118]
[1759254185940,2.39157404,113560.0,113550.0,0.1242348]
[1759254186840,2.39157404,113560.0,113550.0,0.20287118]
[1759254187237,2.75237404,113560.0,113550.0,0.11482638]
[1759254187443,2.90259658,113560.0,113550.0,0.06263532]
[1759254187642,0.0880453,113550.0,113540.0,0.01302]
[1759254187844,1.30083365,113550.0,113540.0,0.01302]
[1759254189247,1.28049038,113550.0,113540.0,0.01302]
[1759254189544,0.0880503,113540.0,113530.0,0.1234786]
[1759254189734,1.73977538,113540.0,113530.0,0.18611392]
[1759254189938,1.73977538,113540.0,113530.0,0.03542]
[1759254190138,2.10097538,113540.0,113530.0,0.01302]
[1759254192144,2.91679792,113540.0,113530.0,0.01302]
[1759254192346,0.0880603,113530.0,113520.0,0.24543549]
[1759254192546,1.28050538,113530.0,113520.0,0.24543549]
[1759254193240,1.28050538,113530.0,113520.0,0.18280017]
[1759254193540,0.4492552,113540.0,113530.0,0.0880603]
[1759254193741,1.74010028,113540.0,113530.0,0.1235203]
[1759254194140,1.73970028,113540.0,113530.0,0.1235203]
[1759254194334,1.74010028,113540.0,113530.0,0.1235203]
[1759254195549,2.10090028,113540.0,113530.0,0.01306]
[1759254196345,2.51672282,113540.0,113530.0,0.01306]
[1759254196551,2.10090028,113540.0,113530.0,0.01306]
[1759254197054,2.51672282,113540.0,113530.0,0.01306]
[1759254197258,2.91672282,113540.0,113530.0,0.01306]
[1759254198948,2.09672282,113540.0,113530.0,0.01306]
[1759254199148,2.50082028,113540.0,113530.0,0.1235204]
[1759254199453,2.50082028,113540.0,113530.0,0.1011202]
[1759254199656,2.50082028,113540.0,113530.0,0.01306]
[1759254200258,1.68090028,113540.0,113530.0,0.01306]
[1759254200450,2.50082028,113540.0,113530.0,0.01306]
[1759254201652,2.91664282,113540.0,113530.0,0.01306]
[1759254201951,2.50082028,113540.0,113530.0,0.1011184]
[1759254202156,2.50082028,113540.0,113530.0,0.01306]
[1759254202553,2.50082028,113540.0,113520.0,0.09473807]
[1759254202554,2.91664282,113540.0,113520.0,0.09473807]
[1759254202761,1.28050318,113530.0,113520.0,0.09473807]
[1759254202947,1.30142544,113530.0,113520.0,0.18280397]
[1759254203153,1.28962036,113530.0,113520.0,0.18280397]
[1759254203357,2.12126544,113530.0,113520.0,0.18280397]
[1759254203856,1.30142544,113530.0,113520.0,0.20521397]
[1759254204057,2.12126544,113530.0,113520.0,0.20521397]
[1759254204457,0.5248033,113530.0,113520.0,0.20521397]
[1759254204658,1.3446433,113530.0,113520.0,0.60521397]
[1759254204853,1.3450433,113530.0,113520.0,0.60521397]
[1759254205758,1.3450433,113530.0,113520.0,0.20521407]
[1759254205960,1.3450433,113530.0,113520.0,0.18280407]
[1759254206258,1.76086584,113530.0,113520.0,0.18280407]
[1759254208059,1.76086584,113530.0,113520.0,0.20521407]
[1759254208258,1.3450433,113530.0,113520.0,0.20521407]
[1759254209159,0.5252033,113530.0,113520.0,0.20521407]
[1759254209458,1.3449633,113530.0,113520.0,0.20521407]
[1759254210062,0.5252033,113530.0,113520.0,0.20521407]
[1759254210261,1.3449633,113530.0,113520.0,0.20521407]
[1759254211657,1.68484104,113530.0,113520.0,0.09473807]
[1759254211956,2.10066358,113530.0,113520.0,0.18280567]
[1759254213962,2.10066358,113530.0,113520.0,0.20521567]
[1759254214265,2.10066358,113530.0,113520.0,0.18280567]
[1759254215160,2.10066358,113530.0,113520.0,0.09473807]
[1759254215457,2.12085004,113530.0,113520.0,0.09473807]
[1759254216063,2.12085004,113530.0,113520.0,0.18280557]
[1759254216262,2.12085004,113530.0,113520.0,0.09473807]
[1759254216561,2.10066358,113530.0,113520.0,0.18280787]
[1759254217460,2.10066358,113530.0,113520.0,0.09473807]
[1759254217755,0.0880675,113520.0,113510.0,0.07569532]
[1759254217957,1.69633512,113520.0,113510.0,0.01306]
[1759254218553,0.0880754,113510.0,113500.0,0.16385021]
[1759254218756,2.08576006,113510.0,113500.0,0.10121489]
[1759254219172,2.08576006,113510.0,113500.0,0.16384165]
[1759254220066,1.26620006,113510.0,113500.0,0.18625165]
[1759254220262,2.08572006,113510.0,113500.0,0.12362489]
[1759254220560,1.26620006,113510.0,113500.0,0.01313379]
[1759254220766,2.08576006,113510.0,113500.0,0.01313379]
[1759254221668,2.08576006,113510.0,113500.0,0.02273362]
[1759254221867,2.08576006,113510.0,113500.0,0.09389448]
[1759254222169,2.10616044,113510.0,113500.0,0.01313379]
[1759254222467,2.92198298,113510.0,113500.0,7.379e-05]
[1759254222670,0.0880887,113490.0,113480.0,0.083471]
[1759254222869,0.0880887,113490.0,113480.0,0.01358]
[1759254222870,2.10005378,113490.0,113480.0,0.01358]
[1759254223658,2.10012757,113490.0,113480.0,0.01358]
[1759254223858,1.28060757,113490.0,113480.0,0.01358]
[1759254224065,2.10008757,113490.0,113480.0,0.01358]
[1759254224470,1.28060757,113490.0,113480.0,0.01358]
[1759254224661,2.10008757,113490.0,113480.0,0.01358]
[1759254224865,2.10008757,113490.0,113480.0,0.0455724]
[1759254225067,1.28060757,113490.0,113480.0,0.0455724]
[1759254225371,2.10008757,113490.0,113480.0,0.0231624]
[1759254225767,1.28060757,113490.0,113480.0,0.0231624]
[1759254225968,2.10008757,113490.0,113480.0,0.0231624]
[1759254226270,2.10143707,113490.0,113480.0,0.0231624]
[1759254226566,2.10143707,113490.0,113480.0,0.01358]
[1759254227462,2.10143707,113490.0,113480.0,0.0234835]
[1759254227762,2.10143707,113490.0,113480.0,0.01358]
[1759254227965,2.10147707,113490.0,113480.0,0.03599]
[1759254228271,2.10147707,113490.0,113480.0,0.01358]
[1759254228573,0.0880961,113480.0,113470.0,0.01358]
[1759254228771,0.86539339,113480.0,113470.0,0.01358]
[1759254229680,1.68487339,113480.0,113470.0,0.01358]
[1759254230677,0.0881044,113470.0,113460.0,0.01358]
[1759254230864,0.86540169,113470.0,113460.0,0.01358]
[1759254232367,1.68484169,113470.0,113460.0,0.01358]
[1759254232674,1.68484169,113470.0,113460.0,0.124242]
[1759254233077,1.68524169,113470.0,113460.0,0.124242]
[1759254233670,1.68524169,113470.0,113460.0,0.03613]
[1759254234177,1.68524169,113470.0,113460.0,0.1242416]
[1759254235877,1.68520169,113470.0,113460.0,0.1242416]
[1759254236677,1.68520169,113470.0,113460.0,0.01358]
[1759254237176,1.68520169,113470.0,113460.0,0.1016932]
[1759254237374,1.68520169,113470.0,113460.0,0.1242432]
[1759254239474,1.68520169,113470.0,113460.0,0.1016932]
[1759254239773,1.68520169,113470.0,113460.0,0.01358]
[1759254240570,1.68520169,113470.0,113460.0,0.1242431]
[1759254241673,1.68520169,113470.0,113460.0,0.01358]
[1759254243373,2.50169898,113470.0,113450.0,0.01358]
[1759254243566,1.28190748,113460.0,113450.0,0.01358]
[1759254243768,1.28190748,113460.0,113440.0,0.01297]
[1759254243769,0.0881207,113450.0,113440.0,0.01297]
[1759254244077,1.68469799,113450.0,113440.0,0.01297]
[1759254244281,2.08469799,113450.0,113440.0,0.01297]
[1759254244483,2.08469799,113450.0,113430.0,0.0130391]
[1759254244484,0.0881273,113440.0,113430.0,0.0130391]
[1759254244675,1.28192188,113440.0,113430.0,0.0130391]
[1759254245384,1.68192188,113440.0,113430.0,6.91e-05]
[1759254245682,1.70233329,113440.0,113430.0,6.91e-05]
[1759254245980,0.0881355,113430.0,113420.0,0.01159225]
[1759254246172,2.10117008,113430.0,113420.0,0.01159225]
[1759254246373,1.28193008,113430.0,113420.0,0.01159225]
[1759254246575,2.10113008,113430.0,113420.0,0.01159225]
[1759254246775,2.10122146,113430.0,113420.0,0.01159225]
[1759254247889,1.28202146,113430.0,113420.0,0.01159225]
[1759254248274,2.10126146,113430.0,113420.0,0.01159225]
[1759254248588,0.44902688,113430.0,113420.0,0.12228525]
[1759254248887,2.10126146,113430.0,113420.0,0.12228525]
[1759254249090,2.10166146,113430.0,113420.0,0.12228525]
[1759254249480,1.28242146,113430.0,113420.0,0.12228525]
[1759254249987,2.10166146,113430.0,113420.0,0.03414225]
[1759254250178,1.18053138,113430.0,113420.0,0.12228515]
[1759254250379,1.59702867,113430.0,113420.0,0.12228515]
[1759254250585,2.10126116,113430.0,113420.0,0.12228515]
[1759254250788,2.10166116,113430.0,113420.0,0.12228515]
[1759254251280,2.08732959,113430.0,113420.0,0.03414225]
[1759254251482,2.08732959,113430.0,113420.0,0.12228405]
[1759254252087,2.08732959,113430.0,113420.0,0.01159225]
[1759254252679,1.26808959,113430.0,113420.0,0.01159225]
[1759254252878,2.08728959,113430.0,113420.0,0.03414225]
[1759254253078,2.48688959,113430.0,113420.0,0.01159225]
[1759254253284,0.088143,113420.0,113410.0,0.01297]
[1759254253480,1.28193758,113420.0,113410.0,0.01297]
[1759254253682,0.86544029,113420.0,113410.0,0.01297]
[1759254253985,0.0881505,113410.0,113400.0,0.01297]
[1759254254187,2.10114508,113410.0,113400.0,0.01297]
[1759254256079,0.0881573,113400.0,113390.0,0.01297]
[1759254256284,1.28202103,113400.0,113390.0,0.01297]
[1759254257092,0.0881661,113390.0,113380.0,0.01297]
[1759254257282,1.68466339,113390.0,113380.0,0.01297]
[1759254258293,1.676061,113390.0,113380.0,0.02597558]
[1759254258684,1.676061,113390.0,113380.0,0.01297]
[1759254260095,0.856861,113390.0,113380.0,0.01297]
[1759254260304,1.676061,113390.0,113380.0,0.01297]
[1759254260491,1.676021,113390.0,113380.0,0.1239924]
[1759254260689,0.857261,113390.0,113380.0,0.1239924]
[1759254260890,1.676461,113390.0,113380.0,0.1239924]
[1759254261090,1.676061,113390.0,113380.0,0.1239924]
[1759254261394,1.30132446,113390.0,113380.0,0.03582]
[1759254263296,1.30132446,113390.0,113380.0,0.01297]
[1759254263596,1.30132446,113390.0,113380.0,0.03462]
[1759254264295,0.48212446,113390.0,113380.0,0.1227935]
[1759254264493,1.30132446,113390.0,113380.0,0.1227935]
[1759254264691,0.48212446,113390.0,113380.0,0.1227935]
[1759254264890,1.30132446,113390.0,113380.0,0.1227935]
[1759254265994,2.07862175,113390.0,113380.0,0.01297]
[1759254266197,0.0881741,113380.0,113370.0,0.01308007]
[1759254266399,1.30221587,113380.0,113370.0,0.00011007]
[1759254266699,1.30221587,113380.0,113370.0,0.01312847]
[1759254266898,0.0881851,113370.0,113360.0,0.01297]
[1759254267098,0.0881929,113360.0,113350.0,0.01293]
[1759254267300,0.86549019,113360.0,113350.0,0.01293]
[1759254268097,0.86555376,113360.0,113350.0,0.01293]
[1759254268301,0.85694928,113360.0,113350.0,0.01293]
[1759254268704,1.27344657,113360.0,113350.0,0.01293]
[1759254269398,0.0881974,113350.0,113340.0,0.01283]
[1759254269697,1.68465469,113350.0,113340.0,0.01283]
[1759254270201,1.7217907,113350.0,113340.0,0.01283]
[1759254270394,1.7217907,113350.0,113340.0,0.03448]
[1759254271101,1.7217907,113350.0,113340.0,0.01283]
[1759254271896,0.9026307,113350.0,113340.0,0.01283]
[1759254272103,1.7218307,113350.0,113340.0,0.03448]
[1759254272294,1.7218307,113350.0,113340.0,0.01283]
[1759254272708,0.9026307,113350.0,113340.0,0.01283]
[1759254273198,1.7218307,113350.0,113340.0,0.01283]
[1759254273803,0.9026307,113350.0,113340.0,0.01283]
[1759254273997,1.7218307,113350.0,113340.0,0.1226851]
[1759254274395,1.7218307,113350.0,113340.0,0.1010351]
[1759254274595,1.7218307,113350.0,113340.0,0.1226851]
[1759254275104,1.7218307,113350.0,113340.0,0.1010351]
[1759254275906,0.9026307,113350.0,113340.0,0.1010351]
[1759254276106,0.9026307,113350.0,113340.0,0.1226851]
[1759254276507,1.7218307,113350.0,113340.0,0.1226851]
[1759254277006,1.7218307,113350.0,113340.0,0.01283]
[1759254278201,0.0882037,113340.0,113320.0,0.1707603]
[1759254278401,1.34670234,113330.0,113320.0,0.1010499]
[1759254278601,1.34670234,113330.0,113320.0,0.01283]
[1759254279207,1.34676726,113330.0,113320.0,0.01283]
[1759254279402,1.70756726,113330.0,113320.0,0.01283]
[1759254280311,1.72186942,113330.0,113320.0,0.01283]
[1759254281201,1.72186942,113330.0,113320.0,0.10105]
[1759254281809,1.74264106,113330.0,113320.0,0.10105]
[1759254282009,1.72186942,113330.0,113320.0,0.10105]
[1759254282397,1.26823612,113330.0,113320.0,0.10105]
[1759254282602,1.72186942,113330.0,113320.0,0.01283]
[1759254285803,0.89410233,113330.0,113320.0,0.02590227]
[1759254286004,0.89410233,113330.0,113320.0,0.1227]
[1759254286204,6.492e-05,113330.0,113320.0,0.5227]
[1759254286408,0.81918492,113330.0,113320.0,0.5227]